[Event "Titled Tuesday Blitz November 22 Early 2022"]
[White "Rakhmanov, Aleksandr"]
[Black "Aizpurua, Patrick Emilio"]
[WhiteFideId "4173708"]
[BlackFideId "6600522"]
[WhiteElo "2530"]
[BlackElo "2378"]
[Result "1-0"]
[Round "06"]
[TimeControl "180+1"]
[Date "2022.11.23"]
[WhiteClock "0:01:42"]
[BlackClock "0:00:44"]

1. d4 {[%clk 0:02:57]}  Nf6 {[%clk 0:02:59]} 2. c4 {[%clk 0:02:57]}  e6 {[%clk 0:02:59]} 3. Nc3 {[%clk 0:02:57]}  Bb4 {[%clk 0:02:59]} 4. e3 {[%clk 0:02:57]}  d5 {[%clk 0:02:57]} 5. a3 {[%clk 0:02:54]}  Be7 {[%clk 0:02:52]} 6. Nf3 {[%clk 0:02:54]}  O-O {[%clk 0:02:52]} 7. Bd2 {[%clk 0:02:54]}  Nbd7 {[%clk 0:02:51]} 8. Bd3 {[%clk 0:02:51]}  dxc4 {[%clk 0:02:49]} 9. Bxc4 {[%clk 0:02:52]}  c5 {[%clk 0:02:50]} 10. O-O {[%clk 0:02:53]}  cxd4 {[%clk 0:02:49]} 11. exd4 {[%clk 0:02:50]}  Nb6 {[%clk 0:02:47]} 12. Bb3 {[%clk 0:02:45]}  h6 {[%clk 0:02:45]} 13. Re1 {[%clk 0:02:45]}  Bd6 {[%clk 0:02:45]} 14. Ne5 {[%clk 0:02:44]}  a6 {[%clk 0:02:32]} 15. Qf3 {[%clk 0:02:43]}  Bd7 {[%clk 0:01:30]} 16. Qg3 {[%clk 0:02:11]}  Kh8 {[%clk 0:01:15]} 17. Nxf7+ {[%clk 0:02:07]}  Rxf7 {[%clk 0:01:13]} 18. Qxd6 {[%clk 0:02:07]}  Bc6 {[%clk 0:00:52]} 19. Qxd8+ {[%clk 0:01:56]}  Rxd8 {[%clk 0:00:53]} 20. Bxe6 {[%clk 0:01:56]}  Re7 {[%clk 0:00:53]} 21. Bb3 {[%clk 0:01:44]}  Rxe1+ {[%clk 0:00:52]} 22. Rxe1 {[%clk 0:01:45]}  Nbd5 {[%clk 0:00:44]} 23. f3 {[%clk 0:01:42]} 1-0


[Site "https://www.chess.com"]

[Event "Titled Tuesday Blitz November 22 Early 2022"]
[White "Rosh Jain"]
[Black "Larina, Maria"]
[WhiteFideId "25789465"]
[BlackFideId "24113182"]
[WhiteElo "2233"]
[BlackElo "1848"]
[Result "0-1"]
[Round "06"]
[TimeControl "180+1"]
[Date "2022.11.23"]
[WhiteClock "0:00:01"]
[BlackClock "0:00:08"]

1. e4 {[%clk 0:02:54]}  c6 {[%clk 0:02:59]} 2. Nc3 {[%clk 0:02:50]}  d5 {[%clk 0:02:59]} 3. Nf3 {[%clk 0:02:48]}  Bg4 {[%clk 0:02:59]} 4. h3 {[%clk 0:02:47]}  Bxf3 {[%clk 0:02:58]} 5. Qxf3 {[%clk 0:02:48]}  e6 {[%clk 0:02:58]} 6. d3 {[%clk 0:02:47]}  Nd7 {[%clk 0:02:55]} 7. Be2 {[%clk 0:02:45]}  Qc7 {[%clk 0:02:43]} 8. d4 {[%clk 0:02:33]}  dxe4 {[%clk 0:02:41]} 9. Nxe4 {[%clk 0:02:31]}  Qb6 {[%clk 0:02:30]} 10. c3 {[%clk 0:02:28]}  Ngf6 {[%clk 0:02:28]} 11. O-O {[%clk 0:02:24]}  Nxe4 {[%clk 0:02:27]} 12. Qxe4 {[%clk 0:02:16]}  Nf6 {[%clk 0:02:27]} 13. Qc2 {[%clk 0:02:16]}  Be7 {[%clk 0:02:26]} 14. Be3 {[%clk 0:02:15]}  Qc7 {[%clk 0:02:23]} 15. c4 {[%clk 0:02:10]}  O-O {[%clk 0:02:23]} 16. Bd3 {[%clk 0:02:04]}  g6 {[%clk 0:02:20]} 17. Qd2 {[%clk 0:01:53]}  Rfd8 {[%clk 0:02:19]} 18. Qc3 {[%clk 0:01:51]}  Nh5 {[%clk 0:02:12]} 19. Rac1 {[%clk 0:01:48]}  Nf4 {[%clk 0:02:11]} 20. Be4 {[%clk 0:01:44]}  Bf6 {[%clk 0:02:09]} 21. Bf3 {[%clk 0:01:15]}  c5 {[%clk 0:01:56]} 22. Rfd1 {[%clk 0:01:14]}  Kg7 {[%clk 0:01:39]} 23. Qb3 {[%clk 0:00:24]}  cxd4 {[%clk 0:01:34]} 24. Bxf4 {[%clk 0:00:21]}  Qxf4 {[%clk 0:01:33]} 25. Qxb7 {[%clk 0:00:21]}  Rab8 {[%clk 0:01:23]} 26. Qxa7 {[%clk 0:00:21]}  Rxb2 {[%clk 0:01:23]} 27. c5 {[%clk 0:00:21]}  Qh4 {[%clk 0:01:20]} 28. Rf1 {[%clk 0:00:18]}  d3 {[%clk 0:01:18]} 29. c6 {[%clk 0:00:17]}  Bd4 {[%clk 0:01:17]} 30. Qa5 {[%clk 0:00:14]}  Bxf2+ {[%clk 0:01:15]} 31. Kh1 {[%clk 0:00:14]}  Bd4 {[%clk 0:00:29]} 32. c7 {[%clk 0:00:12]}  Rc8 {[%clk 0:00:26]} 33. Qa6 {[%clk 0:00:11]}  Rxc7 {[%clk 0:00:18]} 34. Rxc7 {[%clk 0:00:10]}  Be5 {[%clk 0:00:19]} 35. Rc5 {[%clk 0:00:04]}  Qf4 {[%clk 0:00:16]} 36. Rxe5 {[%clk 0:00:04]}  Qxe5 {[%clk 0:00:16]} 37. Qxd3 {[%clk 0:00:04]}  Rxa2 {[%clk 0:00:15]} 38. Qe4 {[%clk 0:00:03]}  Qb2 {[%clk 0:00:14]} 39. Qg4 {[%clk 0:00:03]}  h5 {[%clk 0:00:13]} 40. Qg3 {[%clk 0:00:03]}  Qd2 {[%clk 0:00:11]} 41. Rd1 {[%clk 0:00:02]}  Qe3 {[%clk 0:00:10]} 42. Rd7 {[%clk 0:00:02]}  Qc1+ {[%clk 0:00:08]} 43. Kh2 {[%clk 0:00:02]}  Ra1 {[%clk 0:00:09]} 44. Qe5+ {[%clk 0:00:02]}  Kh6 {[%clk 0:00:09]} 45. Qh8+ {[%clk 0:00:02]}  Kg5 {[%clk 0:00:08]} 46. Qe5+ {[%clk 0:00:02]}  Kh6 {[%clk 0:00:09]} 47. Qh8+ {[%clk 0:00:02]}  Kg5 {[%clk 0:00:09]} 48. Qe5+ {[%clk 0:00:01]}  f5 {[%clk 0:00:09]} 49. Qg7 {[%clk 0:00:01]}  Qg1+ {[%clk 0:00:08]} 50. Kg3 {[%clk 0:00:01]}  h4# {[%clk 0:00:08]} 0-1


[Site "https://www.chess.com"]

[Event "Titled Tuesday Blitz November 22 Early 2022"]
[White "Spalir, Monika"]
[Black "Torres Dominguez, David"]
[WhiteFideId "14609118"]
[BlackFideId "2220857"]
[WhiteElo "2032"]
[BlackElo "2037"]
[Result "1-0"]
[Round "06"]
[TimeControl "180+1"]
[Date "2022.11.23"]
[WhiteClock "0:00:03"]
[BlackClock "0:00:07"]

1. d4 {[%clk 0:03:00]}  e5 {[%clk 0:02:11]} 2. dxe5 {[%clk 0:02:58]}  d6 {[%clk 0:02:12]} 3. exd6 {[%clk 0:02:58]}  Bxd6 {[%clk 0:02:12]} 4. Nf3 {[%clk 0:02:56]}  Bg4 {[%clk 0:02:13]} 5. g3 {[%clk 0:02:52]}  Nc6 {[%clk 0:02:12]} 6. Bg2 {[%clk 0:02:52]}  Qd7 {[%clk 0:02:10]} 7. O-O {[%clk 0:02:51]}  O-O-O {[%clk 0:02:10]} 8. c3 {[%clk 0:02:46]}  Bh3 {[%clk 0:02:10]} 9. Qc2 {[%clk 0:02:42]}  Nf6 {[%clk 0:01:58]} 10. b4 {[%clk 0:02:39]}  h5 {[%clk 0:01:53]} 11. Bg5 {[%clk 0:02:27]}  h4 {[%clk 0:01:48]} 12. Bxh4 {[%clk 0:02:06]}  Rde8 {[%clk 0:01:32]} 13. Nbd2 {[%clk 0:01:12]}  Bxg2 {[%clk 0:01:21]} 14. Kxg2 {[%clk 0:01:12]}  g5 {[%clk 0:01:06]} 15. Nxg5 {[%clk 0:01:01]}  Rxh4 {[%clk 0:00:59]} 16. gxh4 {[%clk 0:01:01]}  Qg4+ {[%clk 0:00:58]} 17. Kh1 {[%clk 0:01:01]}  Qxh4 {[%clk 0:00:55]} 18. Ndf3 {[%clk 0:00:57]}  Qh5 {[%clk 0:00:46]} 19. Qf5+ {[%clk 0:00:53]}  Nd7 {[%clk 0:00:36]} 20. Qxf7 {[%clk 0:00:42]}  Qh8 {[%clk 0:00:27]} 21. Rad1 {[%clk 0:00:27]}  Rf8 {[%clk 0:00:26]} 22. Qe6 {[%clk 0:00:23]}  Nd8 {[%clk 0:00:18]} 23. Qg4 {[%clk 0:00:18]}  Kb8 {[%clk 0:00:13]} 24. Qg2 {[%clk 0:00:12]}  Nf7 {[%clk 0:00:12]} 25. Rg1 {[%clk 0:00:11]}  Nxg5 {[%clk 0:00:11]} 26. Nxg5 {[%clk 0:00:11]}  Rg8 {[%clk 0:00:10]} 27. f4 {[%clk 0:00:05]}  Bxf4 {[%clk 0:00:09]} 28. Rxd7 {[%clk 0:00:05]}  Rxg5 {[%clk 0:00:09]} 29. Qf2 {[%clk 0:00:03]}  Be3 {[%clk 0:00:07]} 30. Rgd1 {[%clk 0:00:01]}  Bxf2 {[%clk 0:00:06]} 31. Rd8+ {[%clk 0:00:02]}  Qxd8 {[%clk 0:00:07]} 32. Rxd8# {[%clk 0:00:03]} 1-0


[Site "https://www.chess.com"]

[Event "Titled Tuesday Blitz November 22 Early 2022"]
[White "Sadubayev, Airat"]
[Black "Sanchez, Robert"]
[WhiteFideId "13713264"]
[BlackFideId "2034360"]
[WhiteElo "2160"]
[BlackElo "2292"]
[Result "0-1"]
[Round "06"]
[TimeControl "180+1"]
[Date "2022.11.23"]
[WhiteClock "0:00:04"]
[BlackClock "0:01:21"]

1. d4 {[%clk 0:02:55]}  Nf6 {[%clk 0:02:59]} 2. c4 {[%clk 0:02:53]}  e6 {[%clk 0:03:00]} 3. Nf3 {[%clk 0:02:52]}  Bb4+ {[%clk 0:03:00]} 4. Bd2 {[%clk 0:02:50]}  a5 {[%clk 0:02:57]} 5. g3 {[%clk 0:02:49]}  O-O {[%clk 0:02:57]} 6. Bg2 {[%clk 0:02:49]}  d5 {[%clk 0:02:57]} 7. O-O {[%clk 0:02:40]}  Be7 {[%clk 0:02:55]} 8. Nc3 {[%clk 0:02:35]}  dxc4 {[%clk 0:02:54]} 9. e3 {[%clk 0:02:27]}  Nd5 {[%clk 0:02:48]} 10. Ne5 {[%clk 0:02:21]}  Nb6 {[%clk 0:02:22]} 11. Qe2 {[%clk 0:02:13]}  N8d7 {[%clk 0:02:17]} 12. Nxc4 {[%clk 0:02:07]}  Nxc4 {[%clk 0:02:17]} 13. Qxc4 {[%clk 0:02:07]}  e5 {[%clk 0:02:18]} 14. dxe5 {[%clk 0:01:48]}  Nxe5 {[%clk 0:02:15]} 15. Qe2 {[%clk 0:01:48]}  Bg4 {[%clk 0:02:08]} 16. f3 {[%clk 0:01:32]}  Be6 {[%clk 0:02:07]} 17. b3 {[%clk 0:01:23]}  Qd3 {[%clk 0:01:54]} 18. Rfd1 {[%clk 0:01:11]}  Rfd8 {[%clk 0:01:45]} 19. Bf1 {[%clk 0:00:53]}  Qxd2 {[%clk 0:01:36]} 20. Rxd2 {[%clk 0:00:41]}  Rxd2 {[%clk 0:01:35]} 21. Qxd2 {[%clk 0:00:21]}  Nxf3+ {[%clk 0:01:33]} 22. Kf2 {[%clk 0:00:22]}  Nxd2 {[%clk 0:01:34]} 23. Ke2 {[%clk 0:00:17]}  Rd8 {[%clk 0:01:30]} 24. Rd1 {[%clk 0:00:15]}  Bg4+ {[%clk 0:01:29]} 25. Ke1 {[%clk 0:00:14]}  Bxd1 {[%clk 0:01:28]} 26. Kxd1 {[%clk 0:00:15]}  Nxf1+ {[%clk 0:01:25]} 27. Ke1 {[%clk 0:00:13]}  Nxe3 {[%clk 0:01:25]} 28. Ke2 {[%clk 0:00:10]}  Nd5 {[%clk 0:01:24]} 29. Nb5 {[%clk 0:00:09]}  c6 {[%clk 0:01:23]} 30. Na3 {[%clk 0:00:08]}  Bxa3 {[%clk 0:01:23]} 31. h4 {[%clk 0:00:07]}  Nb4 {[%clk 0:01:23]} 32. h5 {[%clk 0:00:04]}  Nxa2 {[%clk 0:01:21]} 0-1


[Site "https://www.chess.com"]

[Event "Titled Tuesday Blitz November 22 Early 2022"]
[White "Salman, Pavel"]
[Black "Rios Escobar, Adan"]
[WhiteFideId "24153753"]
[BlackFideId "3403645"]
[WhiteElo "2187"]
[BlackElo "2357"]
[Result "1-0"]
[Round "06"]
[TimeControl "180+1"]
[Date "2022.11.23"]
[WhiteClock "0:01:00"]
[BlackClock "0:00:06"]

1. Nf3 {[%clk 0:03:00]}  Nf6 {[%clk 0:02:46]} 2. g3 {[%clk 0:02:59]}  g6 {[%clk 0:02:46]} 3. Bg2 {[%clk 0:02:56]}  Bg7 {[%clk 0:02:45]} 4. O-O {[%clk 0:02:57]}  O-O {[%clk 0:02:46]} 5. d4 {[%clk 0:02:58]}  c5 {[%clk 0:02:45]} 6. c4 {[%clk 0:02:50]}  cxd4 {[%clk 0:02:43]} 7. Nxd4 {[%clk 0:02:51]}  Nc6 {[%clk 0:02:43]} 8. Nc2 {[%clk 0:02:49]}  d6 {[%clk 0:02:37]} 9. Nc3 {[%clk 0:02:50]}  Qa5 {[%clk 0:02:35]} 10. Ne3 {[%clk 0:02:47]}  Be6 {[%clk 0:02:16]} 11. Ned5 {[%clk 0:02:45]}  Rfd8 {[%clk 0:01:30]} 12. Bd2 {[%clk 0:02:32]}  Rd7 {[%clk 0:01:00]} 13. Nb5 {[%clk 0:02:24]}  Qd8 {[%clk 0:00:58]} 14. Bc3 {[%clk 0:02:18]}  a6 {[%clk 0:00:51]} 15. Nxf6+ {[%clk 0:02:12]}  exf6 {[%clk 0:00:43]} 16. Nd4 {[%clk 0:02:07]}  Nxd4 {[%clk 0:00:38]} 17. Qxd4 {[%clk 0:02:08]}  Rc8 {[%clk 0:00:36]} 18. b3 {[%clk 0:02:01]}  d5 {[%clk 0:00:30]} 19. c5 {[%clk 0:01:56]}  Qf8 {[%clk 0:00:26]} 20. b4 {[%clk 0:01:55]}  f5 {[%clk 0:00:25]} 21. Qxg7+ {[%clk 0:01:55]}  Qxg7 {[%clk 0:00:23]} 22. Bxg7 {[%clk 0:01:56]}  Kxg7 {[%clk 0:00:24]} 23. Rfd1 {[%clk 0:01:56]}  b6 {[%clk 0:00:22]} 24. cxb6 {[%clk 0:01:34]}  Rb8 {[%clk 0:00:21]} 25. Rd4 {[%clk 0:01:34]}  Rxb6 {[%clk 0:00:21]} 26. Rc1 {[%clk 0:01:35]}  Kf6 {[%clk 0:00:19]} 27. h4 {[%clk 0:01:33]}  h5 {[%clk 0:00:19]} 28. Rc5 {[%clk 0:01:30]}  Rb5 {[%clk 0:00:14]} 29. Rc6 {[%clk 0:01:26]}  Ke7 {[%clk 0:00:11]} 30. Rxa6 {[%clk 0:01:24]}  Rc7 {[%clk 0:00:12]} 31. a4 {[%clk 0:01:20]}  Rb8 {[%clk 0:00:10]} 32. e3 {[%clk 0:01:15]}  Rc1+ {[%clk 0:00:10]} 33. Bf1 {[%clk 0:01:15]}  Bd7 {[%clk 0:00:08]} 34. Kg2 {[%clk 0:01:03]}  Rb1 {[%clk 0:00:06]} 35. b5 {[%clk 0:01:00]} 1-0


[Site "https://www.chess.com"]

[Event "Titled Tuesday Blitz November 22 Early 2022"]
[White "Sargissyan, Sargis"]
[Black "Johnson, Ben"]
[WhiteFideId "13303210"]
[BlackFideId "2010917"]
[WhiteElo "2109"]
[BlackElo "2154"]
[Result "1-0"]
[Round "06"]
[TimeControl "180+1"]
[Date "2022.11.23"]
[WhiteClock "0:01:49"]
[BlackClock "0:00:03"]

1. c4 {[%clk 0:02:56]}  e6 {[%clk 0:02:59]} 2. g3 {[%clk 0:02:56]}  d5 {[%clk 0:02:59]} 3. Bg2 {[%clk 0:02:57]}  Nf6 {[%clk 0:02:59]} 4. Nf3 {[%clk 0:02:57]}  dxc4 {[%clk 0:02:59]} 5. O-O {[%clk 0:02:58]}  c5 {[%clk 0:02:59]} 6. Na3 {[%clk 0:02:57]}  Nc6 {[%clk 0:02:57]} 7. Nxc4 {[%clk 0:02:58]}  Be7 {[%clk 0:02:57]} 8. b3 {[%clk 0:02:58]}  O-O {[%clk 0:02:55]} 9. Bb2 {[%clk 0:02:59]}  Rb8 {[%clk 0:02:39]} 10. d4 {[%clk 0:02:58]}  cxd4 {[%clk 0:02:36]} 11. Nxd4 {[%clk 0:02:58]}  Nxd4 {[%clk 0:02:34]} 12. Qxd4 {[%clk 0:02:59]}  Qxd4 {[%clk 0:02:19]} 13. Bxd4 {[%clk 0:02:58]}  Bd7 {[%clk 0:02:07]} 14. Bxa7 {[%clk 0:02:56]}  Ra8 {[%clk 0:02:03]} 15. Bb6 {[%clk 0:02:54]}  Bc6 {[%clk 0:02:00]} 16. Rfd1 {[%clk 0:02:51]}  Nd5 {[%clk 0:01:59]} 17. Bd4 {[%clk 0:02:48]}  Bb4 {[%clk 0:01:48]} 18. Ne5 {[%clk 0:02:48]}  Bb5 {[%clk 0:01:35]} 19. Bxd5 {[%clk 0:02:42]}  exd5 {[%clk 0:01:34]} 20. Nd3 {[%clk 0:02:43]}  Bd6 {[%clk 0:01:28]} 21. a4 {[%clk 0:02:42]}  Bd7 {[%clk 0:01:25]} 22. Bc5 {[%clk 0:02:41]}  Ra6 {[%clk 0:01:18]} 23. Bxd6 {[%clk 0:02:40]}  Rxd6 {[%clk 0:01:18]} 24. Nf4 {[%clk 0:02:37]}  d4 {[%clk 0:01:05]} 25. e3 {[%clk 0:02:33]}  g5 {[%clk 0:01:04]} 26. Ne2 {[%clk 0:02:22]}  Bg4 {[%clk 0:01:01]} 27. Rxd4 {[%clk 0:02:22]}  Rxd4 {[%clk 0:00:46]} 28. Nxd4 {[%clk 0:02:16]}  Rc8 {[%clk 0:00:47]} 29. f3 {[%clk 0:02:15]}  Bd7 {[%clk 0:00:46]} 30. Kf2 {[%clk 0:02:15]}  h5 {[%clk 0:00:39]} 31. h4 {[%clk 0:02:14]}  f6 {[%clk 0:00:38]} 32. Ke2 {[%clk 0:02:13]}  Kf7 {[%clk 0:00:35]} 33. Kd2 {[%clk 0:02:14]}  gxh4 {[%clk 0:00:31]} 34. gxh4 {[%clk 0:02:13]}  Rg8 {[%clk 0:00:31]} 35. Rc1 {[%clk 0:02:05]}  Rg2+ {[%clk 0:00:31]} 36. Kd3 {[%clk 0:02:05]}  Ke8 {[%clk 0:00:11]} 37. Rc7 {[%clk 0:02:05]}  b6 {[%clk 0:00:11]} 38. Rb7 {[%clk 0:02:02]}  Rh2 {[%clk 0:00:11]} 39. Rxb6 {[%clk 0:02:02]}  Rxh4 {[%clk 0:00:12]} 40. a5 {[%clk 0:02:02]}  Rh1 {[%clk 0:00:11]} 41. a6 {[%clk 0:02:03]}  Ra1 {[%clk 0:00:11]} 42. Rxf6 {[%clk 0:02:02]}  h4 {[%clk 0:00:10]} 43. b4 {[%clk 0:01:58]}  h3 {[%clk 0:00:08]} 44. Rh6 {[%clk 0:01:57]}  Kf7 {[%clk 0:00:04]} 45. b5 {[%clk 0:01:56]}  Kg7 {[%clk 0:00:04]} 46. Rh4 {[%clk 0:01:56]}  Ra2 {[%clk 0:00:03]} 47. Nc6 {[%clk 0:01:49]}  Bxc6 {[%clk 0:00:01]} 48. bxc6 {[%clk 0:01:49]}  Rxa6 {[%clk 0:00:02]} 49. Rxh3 {[%clk 0:01:48]}  Rxc6 {[%clk 0:00:02]} 50. f4 {[%clk 0:01:49]}  Kf6 {[%clk 0:00:02]} 51. Rh5 {[%clk 0:01:48]}  Rc7 {[%clk 0:00:02]} 52. Ra5 {[%clk 0:01:49]}  Rd7+ {[%clk 0:00:02]} 53. Ke4 {[%clk 0:01:49]}  Rh7 {[%clk 0:00:03]} 54. Ra6+ {[%clk 0:01:49]} 1-0


[Site "https://www.chess.com"]

[Event "Titled Tuesday Blitz November 22 Early 2022"]
[White "Sariego Figueredo, Wilfredo"]
[Black "Garmash, Aliona"]
[WhiteFideId "3500080"]
[BlackFideId "34127620"]
[WhiteElo "2309"]
[BlackElo "1958"]
[Result "0-1"]
[Round "06"]
[TimeControl "180+1"]
[Date "2022.11.23"]
[WhiteClock "0:00:01"]
[BlackClock "0:00:09"]

1. d4 {[%clk 0:02:59]}  d5 {[%clk 0:02:54]} 2. Bf4 {[%clk 0:02:59]}  Nf6 {[%clk 0:02:52]} 3. e3 {[%clk 0:02:59]}  c5 {[%clk 0:02:52]} 4. c3 {[%clk 0:02:59]}  Nc6 {[%clk 0:02:52]} 5. Nf3 {[%clk 0:02:58]}  Qb6 {[%clk 0:02:48]} 6. Qb3 {[%clk 0:02:50]}  c4 {[%clk 0:02:47]} 7. Qxb6 {[%clk 0:02:49]}  axb6 {[%clk 0:02:47]} 8. Na3 {[%clk 0:02:48]}  Ra5 {[%clk 0:02:26]} 9. Bc7 {[%clk 0:02:44]}  Nd7 {[%clk 0:02:24]} 10. Nc2 {[%clk 0:02:38]}  e6 {[%clk 0:02:12]} 11. Be2 {[%clk 0:02:27]}  Be7 {[%clk 0:02:11]} 12. O-O {[%clk 0:02:21]}  Ra6 {[%clk 0:02:08]} 13. b3 {[%clk 0:02:17]}  b5 {[%clk 0:02:05]} 14. b4 {[%clk 0:01:51]}  Ra4 {[%clk 0:01:56]} 15. Bd1 {[%clk 0:01:37]}  O-O {[%clk 0:01:54]} 16. Re1 {[%clk 0:01:31]}  Nf6 {[%clk 0:01:52]} 17. Ne5 {[%clk 0:01:19]}  Ne4 {[%clk 0:01:35]} 18. Nxc6 {[%clk 0:00:53]}  bxc6 {[%clk 0:01:34]} 19. a3 {[%clk 0:00:44]}  Nxc3 {[%clk 0:01:32]} 20. Ba5 {[%clk 0:00:40]}  Bd8 {[%clk 0:01:08]} 21. Bxd8 {[%clk 0:00:36]}  Rxd8 {[%clk 0:01:07]} 22. Bf3 {[%clk 0:00:25]}  Ra7 {[%clk 0:00:59]} 23. Rec1 {[%clk 0:00:21]}  f6 {[%clk 0:00:47]} 24. Ne1 {[%clk 0:00:20]}  Na4 {[%clk 0:00:45]} 25. Bd1 {[%clk 0:00:19]}  Nb6 {[%clk 0:00:42]} 26. Rc3 {[%clk 0:00:17]}  Bd7 {[%clk 0:00:41]} 27. Nf3 {[%clk 0:00:15]}  Rda8 {[%clk 0:00:39]} 28. Nd2 {[%clk 0:00:14]}  Be8 {[%clk 0:00:37]} 29. h3 {[%clk 0:00:13]}  Bg6 {[%clk 0:00:36]} 30. Bg4 {[%clk 0:00:12]}  Kf7 {[%clk 0:00:35]} 31. Be2 {[%clk 0:00:11]}  Na4 {[%clk 0:00:19]} 32. Rcc1 {[%clk 0:00:09]}  Nb2 {[%clk 0:00:17]} 33. Nb1 {[%clk 0:00:07]}  Bd3 {[%clk 0:00:15]} 34. Bxd3 {[%clk 0:00:06]}  Nxd3 {[%clk 0:00:15]} 35. Rc3 {[%clk 0:00:06]}  e5 {[%clk 0:00:14]} 36. Nd2 {[%clk 0:00:06]}  exd4 {[%clk 0:00:14]} 37. exd4 {[%clk 0:00:05]}  Re8 {[%clk 0:00:14]} 38. Nf3 {[%clk 0:00:06]}  Re2 {[%clk 0:00:13]} 39. Kh2 {[%clk 0:00:01]}  Rxf2 {[%clk 0:00:13]} 40. Kg1 {[%clk 0:00:01]}  Re2 {[%clk 0:00:13]} 41. Kf1 {[%clk 0:00:01]}  Rb2 {[%clk 0:00:11]} 42. Kg1 {[%clk 0:00:01]}  Nf4 {[%clk 0:00:09]} 0-1


[Site "https://www.chess.com"]

[Event "Titled Tuesday Blitz November 22 Early 2022"]
[White "Savic, Miroslav"]
[Black "Lucas, Arthur"]
[WhiteFideId "14508494"]
[BlackFideId "26093073"]
[WhiteElo "2209"]
[BlackElo "2251"]
[Result "1-0"]
[Round "06"]
[TimeControl "180+1"]
[Date "2022.11.23"]
[WhiteClock "0:00:19"]
[BlackClock "0:00:01"]

1. Nf3 {[%clk 0:02:53]}  b6 {[%clk 0:02:57]} 2. c4 {[%clk 0:02:50]}  Bb7 {[%clk 0:02:57]} 3. Nc3 {[%clk 0:02:51]}  c5 {[%clk 0:02:53]} 4. b3 {[%clk 0:02:50]}  g6 {[%clk 0:02:52]} 5. Bb2 {[%clk 0:02:50]}  Bg7 {[%clk 0:02:52]} 6. g3 {[%clk 0:02:49]}  e6 {[%clk 0:02:52]} 7. Bg2 {[%clk 0:02:49]}  Ne7 {[%clk 0:02:52]} 8. O-O {[%clk 0:02:48]}  O-O {[%clk 0:02:52]} 9. d4 {[%clk 0:02:41]}  cxd4 {[%clk 0:02:51]} 10. Nxd4 {[%clk 0:02:40]}  Bxg2 {[%clk 0:02:51]} 11. Kxg2 {[%clk 0:02:40]}  Nbc6 {[%clk 0:02:50]} 12. Nxc6 {[%clk 0:02:30]}  dxc6 {[%clk 0:02:48]} 13. Na4 {[%clk 0:02:24]}  Bxb2 {[%clk 0:02:46]} 14. Nxb2 {[%clk 0:02:23]}  c5 {[%clk 0:02:46]} 15. e3 {[%clk 0:02:13]}  Qc7 {[%clk 0:02:44]} 16. Qf3 {[%clk 0:02:10]}  Nc6 {[%clk 0:02:43]} 17. Nd3 {[%clk 0:02:04]}  Rad8 {[%clk 0:02:42]} 18. Rad1 {[%clk 0:01:57]}  Rxd3 {[%clk 0:02:35]} 19. Rxd3 {[%clk 0:01:54]}  Ne5 {[%clk 0:02:36]} 20. Qe2 {[%clk 0:01:53]}  Nxd3 {[%clk 0:02:28]} 21. Qxd3 {[%clk 0:01:52]}  Rd8 {[%clk 0:02:28]} 22. Qc3 {[%clk 0:01:46]}  Qc6+ {[%clk 0:02:24]} 23. f3 {[%clk 0:01:43]}  Qd7 {[%clk 0:02:21]} 24. Rf2 {[%clk 0:01:43]}  Qd1 {[%clk 0:02:20]} 25. h4 {[%clk 0:01:34]}  h5 {[%clk 0:02:20]} 26. Qc2 {[%clk 0:01:21]}  Qxc2 {[%clk 0:02:05]} 27. Rxc2 {[%clk 0:01:20]}  Rd1 {[%clk 0:02:06]} 28. Kf2 {[%clk 0:01:18]}  Kf8 {[%clk 0:02:04]} 29. e4 {[%clk 0:01:17]}  Ke7 {[%clk 0:02:03]} 30. e5 {[%clk 0:01:15]}  Kd7 {[%clk 0:01:53]} 31. Ke2 {[%clk 0:01:13]}  Rg1 {[%clk 0:01:52]} 32. Rd2+ {[%clk 0:01:11]}  Kc7 {[%clk 0:01:53]} 33. Kf2 {[%clk 0:01:09]}  Rh1 {[%clk 0:01:52]} 34. Ke3 {[%clk 0:01:06]}  Rf1 {[%clk 0:01:37]} 35. Kf4 {[%clk 0:01:02]}  a6 {[%clk 0:01:38]} 36. a4 {[%clk 0:00:58]}  Re1 {[%clk 0:01:29]} 37. Rd3 {[%clk 0:00:56]}  Kc6 {[%clk 0:01:25]} 38. Re3 {[%clk 0:00:46]}  Rxe3 {[%clk 0:00:45]} 39. Kxe3 {[%clk 0:00:44]}  b5 {[%clk 0:00:44]} 40. a5 {[%clk 0:00:36]}  Kd7 {[%clk 0:00:30]} 41. Kf4 {[%clk 0:00:30]}  bxc4 {[%clk 0:00:22]} 42. bxc4 {[%clk 0:00:29]}  Ke7 {[%clk 0:00:18]} 43. Kg5 {[%clk 0:00:29]}  Kf8 {[%clk 0:00:18]} 44. g4 {[%clk 0:00:29]}  hxg4 {[%clk 0:00:17]} 45. fxg4 {[%clk 0:00:30]}  Kg7 {[%clk 0:00:07]} 46. h5 {[%clk 0:00:29]}  Kh7 {[%clk 0:00:01]} 47. h6 {[%clk 0:00:19]}  Kh8 {[%clk 0:00:01]} 48. Kf6 {[%clk 0:00:19]}  Kg8 {[%clk 0:00:01]} 49. g5 {[%clk 0:00:19]}  Kf8 {[%clk 0:00:01]} 50. h7 {[%clk 0:00:19]} 1-0


[Site "https://www.chess.com"]